bitfinex/quotes_ETHUSD_20250511
["timestamp","ask_amount","ask_price","bid_price","bid_amount"]
[1746988823382,0.8275,2498.9,2497.6,7.202]
[1746988823585,4.00256163,2498.4,2497.7,0.80292]
[1746988823928,4.00318977,2498.1,2497.5,0.8272]
[1746988824255,6.36223428,2498.9,2497.5,0.8272]
[1746988824256,4.00259959,2498.4,2497.5,0.8272]
[1746988824453,4.00291473,2498.2,2497.5,0.8272]
[1746988824675,0.80055143,2498.2,2497.5,0.8272]
[1746988824844,0.7543,2498.2,2497.1,0.7649]
[1746988825043,4.00365159,2497.8,2497.1,0.7649]
[1746988825285,4.00365159,2497.8,2497.1,8.7649]
[1746988825497,5.53473428,2498.1,2496.6,3.589]
[1746988825783,4.00408275,2497.5,2496.7,8.0]
[1746988825951,4.00408275,2497.5,2496.6,0.719]
[1746988826139,0.7543,2497.4,2496.2,0.7649]
[1746988826341,0.7543,2497.4,2496.3,0.04005379]
[1746988826542,0.7543,2497.4,2496.2,8.7649]
[1746988826841,4.00384368,2497.6,2496.2,8.7649]
[1746988827161,4.00413825,2497.5,2496.3,0.55]
[1746988827478,1.02919484,2498.0,2496.5,0.55]
[1746988827658,4.00381793,2497.7,2496.5,0.55]
[1746988827862,4.00366592,2497.8,2496.5,0.55]
[1746988828065,4.3563,2498.2,2496.5,0.55]
[1746988828375,4.00369245,2497.7,2496.5,0.55]
[1746988828576,4.3563,2498.2,2496.5,0.55]
[1746988828775,1.19461535,2498.1,2496.5,3.602]
[1746988828995,1.19461535,2498.1,2496.4,0.7649]
[1746988828996,9.5383432,2497.8,2496.4,0.7649]
[1746988829278,0.7515,2498.0,2496.7,0.8316]
[1746988829582,0.2089981,2499.2,2496.3,8.0]
[1746988829583,0.7515,2498.3,2497.0,1.3816]
[1746988829790,0.7515,2498.3,2497.2,8.0]
[1746988829961,0.7515,2498.3,2497.4,0.55]
[1746988830171,4.00231277,2498.6,2497.5,0.8316]
[1746988830385,4.00336404,2497.9,2497.5,0.8316]
[1746988830545,4.00350361,2497.9,2497.0,8.0]
[1746988830742,4.40392491,2497.8,2496.7,0.8316]
[1746988830963,4.00385717,2497.6,2496.7,0.8316]
[1746988831159,4.00376207,2497.7,2496.7,0.8316]
[1746988831348,0.40035036,2497.8,2496.7,0.8316]
[1746988831544,0.7515,2497.9,2496.8,0.04004818]
[1746988831777,4.00431279,2497.4,2496.7,0.8316]
[1746988831949,4.00425181,2497.4,2496.7,0.8316]
[1746988832310,4.00466196,2497.1,2496.7,0.8316]
[1746988832512,0.7515,2497.9,2496.8,0.04005154]
[1746988832648,0.7515,2497.9,2496.9,8.0]
[1746988832844,0.7515,2497.9,2497.0,1.20144883]
[1746988833088,4.75486518,2497.9,2497.0,1.20144883]
[1746988833583,7.60503357,2498.2,2497.1,0.7816]
[1746988833753,3.602,2498.2,2497.2,0.04003904]
[1746988833959,0.7799,2498.7,2497.4,0.7816]
[1746988834182,4.0024185,2498.5,2497.4,1.65976]
[1746988834380,4.0024185,2498.5,2497.5,3.566]
[1746988834570,4.44051047,2498.6,2497.6,8.04003307]
[1746988834776,0.43819,2498.6,2497.6,8.04003307]
[1746988834981,0.43819,2498.6,2497.4,9.65976]
[1746988835160,0.482009,2498.5,2497.4,9.65976]
[1746988836062,4.48446393,2498.5,2497.4,9.65976]
[1746988836447,0.482009,2498.5,2497.4,5.20676]
[1746988836648,4.0026599,2498.4,2497.4,5.20676]
[1746988836897,0.482009,2498.5,2497.4,5.20676]
[1746988837057,0.482009,2498.5,2498.3,0.906365]
[1746988837461,4.484483,2498.5,2498.3,0.906365]
[1746988838253,0.482009,2498.5,2498.3,0.906365]
[1746988838458,4.78206377,2498.7,2498.3,0.906365]
[1746988839006,0.7799,2498.7,2498.3,0.906365]
[1746988839211,4.00248999,2498.5,2498.3,0.906365]
[1746988839417,0.7799,2498.7,2498.3,0.906365]
[1746988839771,4.00237192,2498.6,2498.3,0.906365]
[1746988839977,0.87844032,2498.5,2498.3,0.906365]
[1746988840477,0.7799,2498.7,2498.3,0.906365]
[1746988840709,4.00256163,2498.4,2498.3,0.906365]
[1746988841415,4.78202169,2498.7,2498.3,0.906365]
[1746988841611,4.00256163,2498.4,2498.3,0.906365]
[1746988842742,7.60456163,2498.4,2498.3,0.906365]
[1746988843708,8.42456163,2498.4,2498.3,0.906365]
[1746988844540,3.602,2498.4,2498.3,0.906365]
[1746988844840,4.00233787,2498.6,2498.3,0.906365]
[1746988844997,4.00256163,2498.4,2498.3,0.906365]
[1746988846742,13.00729591,2498.4,2498.3,0.906365]
[1746988846944,4.00410778,2497.5,2496.3,0.7746]
[1746988847148,4.00320256,2498.0,2496.5,3.1766]
[1746988847149,3.473,2497.8,2496.5,3.1766]
[1746988847333,4.00420911,2497.4,2496.5,0.7746]
[1746988847530,4.00464538,2497.1,2496.5,0.7746]
[1746988847748,4.00496359,2497.0,2496.5,0.7746]
[1746988847932,4.00480576,2497.0,2496.2,0.7746]
[1746988848305,7.47777457,2497.1,2496.2,0.7746]
[1746988848551,4.00539772,2496.7,2496.1,0.05]
[1746988848747,4.00519193,2496.8,2496.1,0.05]
[1746988849267,3.49,2497.0,2496.1,0.05]
[1746988849486,4.00496615,2496.9,2496.1,0.05]
[1746988849947,4.00513267,2496.8,2496.1,0.05]
[1746988850249,5.53473428,2497.2,2496.1,0.05]
[1746988850451,3.474,2496.9,2496.2,0.7988]
[1746988850852,4.00521963,2496.8,2496.2,0.7988]
[1746988851151,4.00521963,2496.8,2496.1,0.05]
[1746988851152,4.00545729,2496.6,2496.1,0.05]
[1746988851459,4.00476944,2497.1,2496.1,0.05]
[1746988851630,3.474,2497.0,2496.1,0.05]
[1746988852066,3.474,2497.0,2496.2,0.7527]
[1746988852766,0.8049,2497.9,2496.5,0.55]
[1746988852950,7.47795026,2497.6,2496.5,8.0]
[1746988853258,4.004004,2497.5,2496.6,1.11547]
[1746988853468,3.474,2497.6,2496.4,0.7527]
[1746988853619,4.00429238,2497.4,2496.4,0.7527]
[1746988853820,7.39854602,2497.6,2496.4,0.7527]
[1746988854082,4.00445198,2497.3,2496.4,0.7527]
[1746988854562,4.00432467,2497.3,2496.4,0.7527]
[1746988854866,4.00449737,2497.2,2496.4,0.7527]
[1746988855067,4.00464538,2497.1,2496.4,0.7527]
[1746988855267,4.00481052,2497.0,2496.4,0.7527]
[1746988855499,0.795,2497.2,2496.4,0.7527]
[1746988855665,4.79949736,2497.2,2496.4,0.7527]
[1746988855846,4.48462173,2497.1,2496.4,0.7527]
[1746988856270,0.47994974,2497.1,2496.4,0.7527]
[1746988856474,4.48460824,2497.1,2496.4,0.7527]
[1746988856662,0.47994974,2497.1,2496.4,0.7527]
[1746988856868,4.79954544,2497.2,2496.4,0.7527]
[1746988857089,4.00437616,2497.3,2496.4,0.7527]
[1746988857390,6.925,2497.4,2496.4,0.7527]
[1746988857598,3.474,2497.4,2496.5,0.59005489]
[1746988857889,3.474,2497.4,2496.6,0.8065]
[1746988858093,3.474,2497.4,2496.7,0.55]
[1746988858297,3.92454602,2497.9,2496.9,0.55]
[1746988858592,7.39954602,2497.9,2496.9,0.55]
[1746988858751,7.39954602,2497.9,2496.8,1.6615]
[1746988858958,7.39954602,2497.9,2496.8,0.8065]
[1746988858959,3.92454602,2497.5,2496.8,0.8065]
[1746988859273,4.00523028,2496.8,2496.3,0.7729]
[1746988859582,3.92454602,2497.7,2496.8,4.00523]
[1746988859781,4.00413334,2497.5,2496.5,0.7729]
[1746988860493,4.00389752,2497.6,2496.5,0.7729]
[1746988860695,4.00419642,2497.4,2496.5,0.7729]
[1746988860857,4.00440739,2497.3,2496.5,0.7729]
[1746988861054,4.00466677,2497.1,2496.5,0.7729]
[1746988861275,4.00456688,2497.2,2496.5,0.7729]
[1746988861478,3.474,2497.2,2496.5,0.7729]
[1746988861894,7.47854643,2497.2,2496.5,0.7729]
[1746988862194,0.7729,2497.1,2496.2,3.1749]
[1746988862502,4.00368338,2497.7,2496.6,10.402]
[1746988862688,4.0038674,2497.6,2496.6,10.402]
[1746988862858,7.47779918,2497.7,2496.6,10.402]
[1746988863059,4.00387756,2497.6,2496.6,10.402]
[1746988863261,3.474,2497.7,2496.8,10.402]
[1746988863459,0.7729,2498.4,2497.1,0.55]
[1746988863705,4.00184414,2498.9,2497.5,2.402]
[1746988863992,3.92454602,2498.6,2497.6,3.21493267]
[1746988864197,4.00298702,2498.2,2497.6,0.7729]
[1746988864370,4.00325551,2498.0,2497.6,0.7729]
[1746988864569,0.4002987,2498.1,2497.1,0.761]
[1746988864787,4.00329623,2498.0,2497.1,0.761]
[1746988865299,3.92454602,2497.8,2497.1,0.761]
[1746988865598,7.9281207,2497.8,2497.1,0.761]
[1746988865791,4.00387871,2497.6,2497.1,0.761]
[1746988866003,4.00372077,2497.7,2497.1,0.761]
[1746988866367,4.0038463,2497.6,2497.1,0.761]
[1746988867165,4.00400445,2497.5,2497.1,0.761]
[1746988867360,4.00371348,2497.7,2497.1,0.761]
[1746988867565,3.92454602,2497.8,2497.1,0.761]
[1746988867566,7.92812604,2497.8,2497.1,0.761]
[1746988867761,7.35454602,2497.8,2496.5,8.0]
[1746988867961,3.92454602,2497.4,2496.1,0.05]
[1746988868264,3.92454602,2497.1,2496.1,0.811]
[1746988868496,3.432,2497.0,2496.1,0.811]
[1746988868670,4.00528591,2496.8,2496.1,0.811]
[1746988868877,3.432,2497.0,2496.1,0.811]
[1746988869401,7.43692333,2497.0,2496.1,0.811]
[1746988869592,4.00498196,2496.9,2496.1,0.811]
[1746988870162,3.432,2497.0,2496.1,0.811]
[1746988870366,3.432,2497.0,2496.3,0.761]
[1746988871081,4.0051151,2496.9,2496.3,0.761]
[1746988871272,7.43682771,2497.0,2496.3,0.761]
[1746988871273,3.432,2497.0,2496.3,0.761]
[1746988871467,7.43689469,2497.0,2496.3,0.761]
[1746988871695,3.432,2497.0,2496.3,0.761]
[1746988871899,0.3432,2496.9,2496.3,0.761]
[1746988872724,6.895,2497.3,2496.4,0.55]
[1746988873015,0.7594,2498.0,2496.5,0.761]
[1746988873167,4.00353038,2497.8,2496.7,0.761]
[1746988873504,4.00320485,2498.0,2497.0,0.761]
[1746988873705,4.00288207,2498.2,2497.0,0.761]
[1746988873866,3.475,2498.5,2497.0,0.761]
[1746988874071,4.00315933,2498.1,2497.0,0.761]
[1746988874296,4.00272185,2498.3,2497.0,0.761]
[1746988875087,3.92454602,2498.4,2497.0,0.761]
[1746988875294,4.00272185,2498.3,2497.0,0.761]
[1746988875491,4.00329467,2498.0,2497.1,0.7659]
[1746988875706,4.00338857,2497.9,2497.1,0.7659]
[1746988875893,3.92454602,2498.4,2497.1,0.7659]
[1746988875894,0.8185,2498.3,2497.1,0.7659]
[1746988876094,4.00347869,2497.9,2497.1,0.7659]
[1746988876592,3.475,2498.2,2497.1,0.7659]
[1746988876904,4.00338194,2497.9,2497.1,1.98479]
[1746988877110,4.00355881,2497.8,2497.1,0.7659]
[1746988877517,3.475,2498.2,2497.1,0.7659]
[1746988877674,3.475,2498.2,2497.2,0.55]
[1746988877874,7.47795986,2498.2,2497.3,0.7659]
[1746988878080,4.00310059,2498.1,2497.3,0.7659]
[1746988878386,7.47799334,2498.2,2497.3,0.7659]
[1746988879021,3.475,2498.2,2497.3,0.7659]
[1746988879182,4.00344847,2497.9,2497.3,0.7659]
[1746988879382,3.475,2498.2,2497.3,0.7659]
[1746988879808,4.00312251,2498.1,2497.3,0.7659]
[1746988880510,4.00361666,2497.8,2497.3,0.7659]
[1746988880814,3.92454602,2498.0,2497.3,0.7659]
[1746988881517,3.475,2498.2,2497.3,0.7659]
[1746988881725,7.47788557,2498.2,2497.3,0.7659]
[1746988881900,3.475,2498.2,2497.3,0.7659]
[1746988882218,3.475,2498.2,2497.4,8.0]
[1746988883022,7.47793916,2498.2,2497.4,8.0]
[1746988883383,3.475,2498.2,2497.4,8.0]
[1746988883691,7.47789104,2498.2,2497.4,8.0]
[1746988883910,4.00315064,2498.1,2497.4,8.0]
[1746988884145,3.475,2498.2,2497.4,8.0]
[1746988884297,14.412,2498.6,2497.5,0.79263975]
[1746988884492,18.41427172,2498.6,2497.5,0.7526]
[1746988884708,14.412,2498.6,2497.5,0.7526]
[1746988885524,4.00212791,2498.7,2497.5,0.7526]
[1746988885694,3.413,2498.8,2497.6,1.96916]
[1746988886211,4.00233516,2498.6,2497.6,1.96916]
[1746988886413,4.00215316,2498.7,2497.6,1.96916]
[1746988886725,7.41498771,2498.8,2497.7,0.7526]
[1746988887427,7.41496934,2498.8,2497.7,0.7526]
[1746988888027,3.412,2499.2,2497.7,0.7526]
[1746988888226,3.92454602,2499.0,2497.7,0.7526]
[1746988888404,4.00176077,2498.9,2497.7,0.7526]
[1746988888600,4.00192092,2498.8,2497.7,0.7526]
[1746988888806,4.00178041,2498.9,2497.7,0.7526]
[1746988889432,4.00193037,2498.8,2497.7,0.7526]
[1746988889839,4.0018512,2498.9,2497.7,0.7526]
[1746988890144,4.00194141,2498.8,2497.7,0.7526]
[1746988890662,4.79328272,2500.1,2499.0,8.00359]
[1746988890941,4.79328272,2500.1,2499.1,0.7526]
[1746988890942,4.00067092,2499.6,2499.1,0.7526]
[1746988891097,4.00088474,2499.5,2499.1,0.7526]
[1746988891297,3.92454602,2499.8,2498.8,0.7526]
[1746988891500,3.92454602,2499.5,2498.8,0.7526]
[1746988891743,4.00002674,2500.0,2498.8,0.7526]
[1746988891897,4.00018966,2499.9,2498.8,0.7526]
[1746988892235,3.92454602,2500.2,2498.8,4.0916]
[1746988892419,3.92454602,2500.2,2498.9,8.0]
[1746988892420,7.9242809,2500.2,2498.9,8.0]
[1746988892606,4.00037301,2499.8,2498.9,8.0]
[1746988893225,3.412,2500.6,2499.1,8.0]
[1746988893432,0.05,2500.4,2499.3,8.0]
[1746988893794,4.049379,2500.4,2499.3,40.495269]
[1746988894025,0.05,2500.4,2499.3,43.09198674]
[1746988894114,0.05,2500.4,2499.3,30.176704]
[1746988894326,0.05,2500.4,2499.3,31.001633]
[1746988894503,0.05,2500.4,2499.3,16.35560613]
[1746988894761,0.05,2500.4,2499.3,32.455637]
[1746988894910,0.05,2500.4,2499.3,32.144596]
[1746988895101,0.05,2500.4,2499.3,20.497457]
[1746988895301,3.99954646,2500.3,2499.3,15.017481]
[1746988895613,3.99987847,2500.1,2499.3,11.616943]
[1746988895833,7.92427625,2500.2,2499.3,11.616943]
[1746988896034,3.99984707,2500.1,2499.3,11.616943]
[1746988896418,4.00004677,2500.0,2499.3,11.616943]
[1746988896667,0.7727,2500.1,2499.3,0.7526]
[1746988896952,4.00084456,2499.5,2498.5,0.8122]
[1746988897113,4.00084456,2499.5,2498.4,6.735]
[1746988897114,6.735,2499.9,2498.7,1.3622]
[1746988897308,10.73520146,2499.9,2498.9,0.8122]
[1746988897529,10.73520146,2499.9,2499.0,0.04001195]
[1746988897731,6.735,2499.9,2499.2,8.0]
[1746988897931,3.9999387,2500.1,2499.3,0.8122]
[1746988898244,3.9998502,2500.1,2499.3,0.8122]
[1746988898437,3.99976935,2500.2,2499.3,3.5047]
[1746988898749,3.9997393,2500.2,2499.3,21.459892]
[1746988898947,3.99991404,2500.1,2499.3,21.459892]
[1746988899198,3.99991404,2500.1,2499.3,16.462265]
[1746988899372,3.9997256,2500.2,2499.3,16.462265]
[1746988899667,7.46043148,2500.4,2499.3,16.462265]
[1746988900006,3.461,2500.4,2499.3,16.462265]
[1746988900612,3.99964515,2500.3,2499.3,16.462265]
[1746988900811,4.00006666,2500.0,2499.3,11.774817]
[1746988901041,4.00006666,2500.0,2499.3,12.9522987]
[1746988901310,0.794,2500.0,2498.5,6.722]
[1746988901518,3.92454602,2499.9,2498.6,0.85371621]
[1746988901824,3.92454602,2499.9,2498.6,0.85371591]
[1746988902020,4.00112031,2499.3,2498.6,0.8137]
[1746988902327,7.33454602,2499.6,2498.6,0.8137]
[1746988903055,4.00143253,2499.2,2498.6,0.8137]
[1746988903258,0.40514325,2499.2,2498.6,0.8137]
[1746988903411,4.00053166,2499.7,2498.7,0.04001987]
[1746988903615,4.00080047,2499.5,2498.8,0.8137]
[1746988903843,4.00070261,2499.6,2498.8,0.8137]
[1746988904649,4.00008188,2500.0,2499.2,0.7647]
[1746988904964,3.97454602,2500.4,2499.2,0.7647]
[1746988905265,0.3974546,2500.3,2499.2,0.7647]
[1746988905724,4.00013468,2500.0,2499.2,0.7647]
[1746988906053,0.3974546,2500.3,2499.2,0.7647]
[1746988906054,3.99985547,2500.1,2499.2,0.7647]
[1746988906207,3.99976633,2500.2,2499.2,0.7647]
[1746988906412,7.97399514,2500.4,2499.4,0.7647]
[1746988906711,7.97399514,2500.4,2499.5,0.92047323]
[1746988906938,3.99981371,2500.2,2499.5,0.88047077]
[1746988907142,3.99981371,2500.2,2499.4,0.7647]
[1746988907707,3.97454602,2500.4,2499.5,0.04000593]
[1746988907911,3.99952005,2500.3,2499.4,0.7647]
[1746988908113,3.97454602,2500.4,2499.4,0.7647]
[1746988908548,3.99977117,2500.2,2499.4,0.7647]
[1746988909447,3.97454602,2500.4,2499.4,0.7647]
[1746988909748,0.3974546,2500.3,2499.4,0.7647]
[1746988909955,3.99994769,2500.1,2499.4,0.7647]
[1746988910251,0.3974546,2500.3,2499.4,0.7647]
[1746988910411,4.04941919,2500.4,2499.4,0.7647]
[1746988910617,0.05,2500.4,2499.4,0.7647]
[1746988911329,0.05,2500.4,2499.5,0.04000261]
[1746988912112,3.92454602,2500.3,2499.5,0.04000261]
[1746988912444,3.92454602,2500.3,2499.1,0.8045]
[1746988912445,3.9998882,2500.1,2499.1,0.8045]
[1746988912765,4.0001656,2499.9,2499.1,0.8045]
[1746988912920,4.00000155,2500.0,2499.1,0.8045]
[1746988913115,4.00000155,2500.0,2499.2,0.41265]
[1746988913352,4.00000155,2500.0,2499.3,0.04000596]
[1746988913562,0.05,2500.4,2499.2,8.41265]
[1746988913860,3.99971931,2500.2,2499.3,0.84450596]
[1746988914235,0.05,2500.4,2499.3,0.8045]
[1746988914563,3.99973976,2500.2,2499.4,10.402]
[1746988915165,3.99992253,2500.1,2499.4,10.402]
[1746988915457,3.99957151,2500.3,2499.4,10.402]
[1746988915669,3.99977027,2500.2,2499.4,10.402]
[1746988915881,3.99977027,2500.2,2499.5,0.8045]
[1746988916021,0.05,2500.4,2499.6,9.12515]
[1746988916225,0.05,2500.4,2499.6,12.1205]
[1746988916772,4.04941509,2500.4,2499.6,12.1205]
[1746988916946,3.99964751,2500.3,2499.6,12.1205]
[1746988917129,4.04950384,2500.4,2499.6,12.1205]
[1746988917329,4.04950384,2500.4,2499.7,1.45225]
[1746988918264,3.99956089,2500.3,2499.7,1.45225]
[1746988918426,3.68534147,2500.3,2499.7,1.45225]
[1746988918622,3.99976116,2500.2,2499.6,0.8045]
[1746988918841,3.99961007,2500.3,2499.6,0.8045]
[1746988919249,3.99959123,2500.3,2499.6,0.8045]
[1746988919441,0.05,2500.4,2499.6,0.8045]
[1746988919642,3.99964511,2500.3,2499.6,0.8045]
[1746988919868,3.68534147,2500.3,2499.6,0.8045]
[1746988920162,3.68534147,2500.3,2499.3,13.707]
[1746988920163,0.37353415,2500.3,2499.3,8.0]
[1746988920367,3.73534147,2500.4,2499.4,2.402]
[1746988920573,3.73534147,2500.4,2499.5,0.8212]
[1746988920866,0.05,2500.4,2499.7,0.8212]
[1746988921159,0.05,2500.4,2499.8,0.8212]
[1746988921367,0.05,2500.4,2499.9,10.952]
[1746988921563,0.05,2500.4,2500.0,1.17732]
[1746988921741,0.05,2500.4,2499.8,0.8212]
[1746988922173,0.05,2500.4,2499.8,0.86119829]
[1746988922676,0.05,2500.4,2500.1,2.952]
[1746988922853,0.05,2500.4,2500.2,8.0]
[1746988923054,0.05,2500.4,2500.1,2.402]
[1746988923055,0.05,2500.4,2500.1,13.689]
[1746988923238,0.05,2500.4,2500.1,8.0]
[1746988924783,7.73477671,2500.4,2500.1,8.0]
[1746988924948,3.99952666,2500.3,2500.1,8.0]
[1746988925149,0.05,2500.4,2500.1,8.0]
[1746988925375,4.04949934,2500.4,2500.1,8.0]
[1746988925573,4.04944008,2500.4,2500.1,8.0]
[1746988925857,3.99952005,2500.3,2499.7,0.7745]
[1746988926084,3.68534147,2500.0,2499.7,0.7745]
[1746988926255,4.00057713,2499.7,2499.3,0.7745]
[1746988926459,4.00040338,2499.8,2499.3,0.7745]
[1746988926986,3.68534147,2500.1,2499.3,0.7745]
[1746988927161,4.00046059,2499.8,2499.3,0.7745]
[1746988927485,4.00032002,2499.8,2499.3,0.7745]
[1746988927786,0.44803415,2500.0,2499.3,0.7745]
[1746988928169,4.00016,2499.9,2499.3,0.7745]
[1746988928347,4.44811037,2500.0,2499.3,0.7745]
[1746988928545,4.00007622,2500.0,2499.3,0.7745]
[1746988929854,3.306,2500.3,2499.4,0.04000981]
[1746988930057,0.05,2500.4,2499.6,8.8328]
[1746988930556,7.73475575,2500.4,2499.6,0.8328]
[1746988931063,0.05,2500.4,2499.6,0.8328]
[1746988931418,0.05,2500.4,2499.8,1.3828]
[1746988931589,0.05,2500.4,2500.0,0.8328]
[1746988933189,0.05,2500.4,2500.1,0.03999384]
[1746988933389,0.05,2500.4,2500.0,0.8328]
[1746988933761,0.05,2500.4,2500.0,8.8328]
[1746988933988,0.05,2500.4,2500.1,1.20628]
[1746988936206,0.05,2500.4,2500.2,0.03999163]
[1746988936374,0.05,2500.4,2500.1,1.20628]
[1746988936872,4.04948933,2500.4,2500.0,0.8328]
[1746988937073,0.05,2500.4,2500.1,2.402]
[1746988937294,0.05,2500.4,2500.0,0.8328]
[1746988937773,0.05,2500.4,2499.2,3.206]
[1746988937975,0.05,2500.4,2499.5,2.402]
[1746988938284,0.05,2500.4,2499.8,2.402]
[1746988938859,3.73534147,2500.4,2499.7,8.8328]
[1746988939211,3.73534147,2500.4,2499.8,2.402]
[1746988939387,0.05,2500.4,2500.0,10.402]
[1746988939898,0.05,2500.4,2500.0,2.402]
[1746988942578,0.8183,2501.7,2500.2,2.402]
[1746988942778,0.05,2502.4,2500.1,50.53999531]
[1746988942779,0.05,2502.4,2502.2,30.608007]
[1746988943118,8.27958531,2504.5,2503.0,0.7722]
[1746988943271,7.67854087,2504.3,2503.1,5.677]
[1746988943468,0.77335409,2504.2,2503.5,2.402]
[1746988943674,8.27958531,2504.5,2503.3,10.402]
[1746988943904,8.27958531,2504.5,2503.3,8.0]
[1746988944066,8.27958531,2504.5,2503.0,0.7722]
[1746988944067,3.99329493,2504.2,2503.0,0.7722]
[1746988944432,0.005,2504.4,2503.1,3.86694275]
[1746988944604,0.005,2504.4,2503.4,0.7779]
[1746988944809,0.005,2504.4,2504.0,2.402]
[1746988945131,0.005,2504.4,2504.3,10.402]
[1746988945332,8.88733934,2505.5,2504.7,2.402]
[1746988945534,8.88733934,2505.5,2504.8,22.59316961]
[1746988945698,8.3247507,2505.4,2504.8,2.402]
[1746988945893,8.3247507,2505.4,2504.6,0.4307]
[1746988946422,8.3247507,2505.4,2504.8,8.0]
[1746988946605,8.3247507,2505.4,2505.0,8.0]
[1746988946810,8.3247507,2505.4,2505.3,2.402]
[1746988947010,8.3247507,2505.4,2505.3,17.820132]
[1746988947206,8.3247507,2505.4,2505.3,19.148032]
[1746988947435,0.05,2506.4,2505.5,0.55]
[1746988947639,0.05,2506.4,2505.7,8.0]
[1746988947821,0.05,2506.4,2505.9,0.7779]
[1746988947993,0.05,2506.4,2506.0,0.58989512]
[1746988948338,0.02098831,2509.7,2506.5,2.47310286]
[1746988948632,4.17368241,2510.4,2507.0,1.95333233]
[1746988948940,4.17368241,2510.4,2507.3,9.91501803]
[1746988948941,4.12368241,2510.1,2507.3,9.91501803]
[1746988949120,0.41236824,2510.0,2507.5,9.99430317]
[1746988949323,4.12368241,2509.9,2507.6,4.5962]
[1746988949617,3.816,2509.8,2507.9,1.92260227]
[1746988949817,4.12368241,2509.8,2507.9,9.92260227]
[1746988950018,4.53605065,2510.0,2508.2,1.98206193]
[1746988950218,0.45360507,2509.9,2508.4,0.7682]
[1746988950394,0.05,2510.4,2509.2,0.7682]
[1746988950595,0.05,2510.4,2509.4,8.0]
[1746988950836,0.05,2510.4,2509.5,0.03984041]
[1746988950993,4.76692893,2510.4,2510.3,5.73289428]
[1746988951193,4.76692893,2510.4,2509.8,4.03596166]
[1746988951194,0.7835,2510.0,2509.8,4.03596166]
[1746988951443,0.7835,2510.0,2509.3,8.85062789]
[1746988951444,3.98501633,2509.4,2509.3,8.85062789]
[1746988951749,3.98517514,2509.3,2509.2,9.91819791]
[1746988951917,4.07687378,2509.3,2509.2,9.91819791]
[1746988952099,7.93668241,2509.6,2509.2,9.91819791]
[1746988952333,0.16438204,2509.5,2509.3,8.80805653]
[1746988952640,0.7835,2511.1,2509.3,0.80805653]
[1746988952795,0.7835,2511.1,2509.3,8.7682]
[1746988953000,0.16438204,2511.0,2509.3,0.7682]
[1746988953204,3.98285114,2510.8,2509.3,8.7682]
[1746988953405,8.10677232,2510.7,2509.3,0.80802757]
[1746988953635,8.2553287,2510.7,2509.3,0.7682]
[1746988953845,4.13164629,2510.7,2509.3,0.80803906]
[1746988954037,4.13164629,2510.7,2509.3,0.7682]
[1746988954038,0.18264629,2510.7,2509.3,0.7682]
[1746988954352,0.18264629,2510.7,2509.4,8.03983191]
[1746988954531,0.18264629,2510.7,2509.6,0.7969]
[1746988954694,4.12368241,2510.9,2509.8,8.0]
[1746988955038,0.09194223,2510.9,2509.8,8.0]
[1746988955223,3.98384713,2510.2,2509.2,8.0]
[1746988955394,8.08160185,2510.3,2509.2,0.87969]
[1746988955593,4.098,2510.3,2509.0,0.7969]
[1746988955895,0.18663819,2510.2,2509.1,0.03983923]
[1746988956294,0.18663819,2510.2,2509.3,0.7969]
[1746988956539,6.42214544,2511.0,2509.4,0.03982768]
[1746988956717,3.98342893,2510.4,2509.3,0.7969]
[1746988956936,4.096,2510.3,2509.4,0.03983925]
[1746988957133,0.18663819,2510.2,2509.4,0.03983925]
[1746988957298,4.17041829,2510.2,2509.4,0.03983714]
[1746988957497,4.17041829,2510.2,2509.4,0.54071085]
[1746988957498,0.18663819,2510.2,2509.4,0.54071085]
[1746988957737,3.98321916,2510.6,2509.4,0.50087371]
[1746988957931,4.73263222,2511.0,2509.5,8.0]
[1746988957932,0.18663819,2510.5,2509.5,8.0]
[1746988958135,3.98327026,2510.5,2509.3,4.9859]
[1746988958334,0.17108501,2510.4,2509.4,8.0]
[1746988958550,3.98422487,2509.9,2509.4,8.0]
[1746988958716,3.98422487,2509.9,2509.3,0.7969]
[1746988958717,3.98405224,2510.1,2509.3,0.7969]
[1746988959035,0.17028501,2510.0,2509.3,0.7969]
[1746988959198,0.17028501,2510.0,2509.4,0.03983933]
[1746988959401,4.096,2510.6,2509.4,0.03983933]
[1746988959635,3.98396681,2510.1,2509.3,0.7969]
[1746988959844,8.0791504,2510.6,2509.3,0.7969]
[1746988959845,3.98378615,2510.2,2509.3,0.7969]
[1746988960136,0.17101834,2510.1,2509.3,0.7969]
[1746988960345,0.8224,2510.1,2508.8,0.758]
[1746988960500,5.67214544,2509.6,2508.7,0.55268275]
[1746988960814,3.98692289,2508.2,2508.1,0.05]
[1746988961216,4.80932289,2508.2,2508.1,0.05]
[1746988961431,4.98034123,2508.2,2508.1,0.05]
[1746988961760,0.17101834,2508.2,2508.1,0.05]
[1746988962103,3.98637651,2508.6,2508.1,0.05]
[1746988962401,0.17101834,2508.5,2508.1,0.08986332]
[1746988962605,0.17101834,2508.5,2508.1,0.05]
[1746988962823,3.98565165,2509.0,2508.1,0.05]
[1746988962997,0.16364239,2508.4,2508.1,0.05]
[1746988963202,4.095,2509.1,2508.3,8.0]
[1746988963442,4.095,2509.1,2508.1,0.05]
[1746988963737,3.98574727,2509.0,2508.1,0.05]
[1746988963938,4.095,2509.1,2508.2,0.03985858]
[1746988964141,3.98621518,2508.7,2508.1,0.05]
[1746988964318,3.98580236,2509.0,2508.1,0.05]
[1746988964639,4.74211289,2509.3,2508.1,0.05]
[1746988964843,3.98561627,2509.1,2508.2,0.03985876]
[1746988965012,3.98561627,2509.1,2508.1,0.05]